bitfinex-derivatives/quotes_BTCF0:USTF0_20251215
["timestamp","ask_amount","ask_price","bid_price","bid_amount"]
[1765825873169,0.3608,86300.0,86299.0,0.6927778]
[1765825873370,1.28947431,86300.0,86299.0,0.6927778]
[1765825873566,0.17,86300.0,86299.0,0.6927778]
[1765825874276,0.66773,86292.0,86291.0,0.01176276]
[1765825874478,1.0595987,86292.0,86291.0,0.00017386]
[1765825874680,0.83773,86292.0,86291.0,0.00017386]
[1765825874973,0.83773,86292.0,86291.0,0.68136386]
[1765825875172,1.04801,86292.0,86291.0,0.00017386]
[1765825876165,1.04901,86292.0,86291.0,0.00017386]
[1765825876370,1.78041,86292.0,86291.0,0.00017386]
[1765825876766,1.80769012,86292.0,86291.0,0.00117386]
[1765825876971,0.83773,86292.0,86291.0,0.68236386]
[1765825877173,1.57013,86292.0,86291.0,0.68236386]
[1765825877373,1.57313,86292.0,86291.0,0.68136386]
[1765825878071,1.57213,86292.0,86291.0,0.68136386]
[1765825878668,1.57113,86292.0,86291.0,0.68136386]
[1765825878872,0.176,86292.0,86291.0,0.68136386]
[1765825879582,0.173,86292.0,86291.0,0.68136386]
[1765825879982,0.172,86292.0,86291.0,0.68136386]
[1765825880375,0.171,86292.0,86291.0,0.68136386]
[1765825881079,0.00017386,86308.0,86307.0,0.6927767]
[1765825881379,0.93153386,86308.0,86307.0,1.0535767]
[1765825881683,1.26065386,86308.0,86307.0,1.0535767]
[1765825882470,1.26065386,86308.0,86307.0,1.04199]
[1765825882685,1.26065386,86308.0,86307.0,0.3608]
[1765825882986,1.26065386,86308.0,86295.0,0.19689]
[1765825882987,0.66773,86296.0,86295.0,0.0115883]
[1765825883183,0.66773,86292.0,86287.0,0.3608]
[1765825883372,0.84773,86292.0,86289.0,0.0115891]
[1765825883575,0.84773,86292.0,86291.0,1.04216386]
[1765825883779,0.84773,86292.0,86291.0,0.36097386]
[1765825884785,0.84773,86292.0,86291.0,0.68136386]
[1765825884981,0.18,86292.0,86291.0,0.68136386]
[1765825885487,0.182,86292.0,86291.0,0.68136386]
[1765825885784,0.184,86292.0,86291.0,0.68136386]
[1765825885982,0.182,86292.0,86291.0,0.68136386]
[1765825886180,0.182,86292.0,86291.0,0.68236386]
[1765825886480,0.8613187,86292.0,86291.0,0.33903386]
[1765825886685,0.8613187,86292.0,86291.0,0.34962276]
[1765825886686,0.84873,86292.0,86291.0,0.34962276]
[1765825886986,0.181,86292.0,86291.0,0.69295276]
[1765825887594,0.001,86292.0,86291.0,0.69295276]
[1765825887885,0.47012,86292.0,86291.0,0.69295276]
[1765825888182,0.80873,86292.0,86291.0,0.00017386]
[1765825888886,0.80973,86292.0,86291.0,0.00017386]
[1765825889083,1.54001,86292.0,86291.0,3.86e-06]
[1765825889292,0.6793209,86276.0,86275.0,0.3608]
[1765825889481,1.5906009,86276.0,86275.0,0.3608]
[1765825890592,1.5906009,86276.0,86275.0,0.3628]
[1765825890985,0.18,86276.0,86275.0,1.03469]
[1765825891294,0.00017386,86284.0,86283.0,0.6727]
[1765825891477,0.19017386,86284.0,86283.0,1.0335]
[1765825892485,0.89096386,86284.0,86283.0,0.3608]
[1765825892694,0.7167608,86277.0,86276.0,0.3608]
[1765825892881,0.8967608,86277.0,86276.0,1.04707]
[1765825893288,0.8967608,86277.0,86276.0,0.3608]
[1765825893587,0.7167613,86273.0,86272.0,0.08203509]
[1765825893776,0.7167613,86273.0,86271.0,0.08203509]
[1765825893777,0.70517,86272.0,86271.0,0.08203509]
[1765825893976,0.70517,86272.0,86270.0,0.08203509]
[1765825893977,0.7167616,86271.0,86270.0,0.08203509]
[1765825894190,0.8967616,86271.0,86270.0,0.08203509]
[1765825894682,0.8967616,86271.0,86268.0,0.1009387]
[1765825894987,0.879372,86268.0,86267.0,0.08220895]
[1765825895194,1.059372,86268.0,86267.0,0.10125761]
[1765825895390,0.7167637,86255.0,86254.0,9.05e-05]
[1765825895688,0.011597,86231.0,86230.0,0.14372575]
[1765825895887,1.99725,86231.0,86230.0,0.14372575]
[1765825896093,0.70517,86219.0,86218.0,0.36311971]
[1765825896392,1.62645,86219.0,86218.0,0.00231971]
[1765825896583,1.62655269,86219.0,86218.0,0.00231971]
[1765825897092,0.70517,86209.0,86208.0,0.3608]
[1765825897291,0.88517,86209.0,86208.0,0.3608]
[1765825897481,1.61649,86209.0,86208.0,0.37968498]
[1765825897683,0.70517,86201.0,86198.0,0.3724013]
[1765825897890,0.90517,86201.0,86200.0,0.0187334]
[1765825898194,0.90517,86201.0,86200.0,4e-05]
[1765825898787,0.90517,86201.0,86200.0,0.01856838]
[1765825899088,1.63657,86201.0,86200.0,0.02056838]
[1765825899392,1.63657,86201.0,86200.0,0.02156838]
[1765825899594,1.63657,86201.0,86200.0,0.00304]
[1765825900291,0.70517,86191.0,86190.0,0.3608]
[1765825900491,1.63673222,86191.0,86190.0,0.3608]
[1765825900688,1.63673222,86191.0,86190.0,0.37981453]
[1765825901089,1.63673222,86191.0,86190.0,0.3608]
[1765825901395,1.63673222,86191.0,86190.0,0.38175571]
[1765825901788,1.63673222,86191.0,86190.0,0.38475571]
[1765825901988,0.90529222,86191.0,86190.0,0.38275571]
[1765825902190,1.63685222,86191.0,86190.0,0.38475571]
[1765825902598,0.90529222,86191.0,86190.0,0.38475571]
[1765825903094,1.63693222,86191.0,86190.0,0.38475571]
[1765825904397,0.73180222,86191.0,86190.0,1.26647571]
[1765825904592,0.18012222,86191.0,86190.0,1.26647571]
[1765825904791,0.91180222,86191.0,86190.0,1.26647571]
[1765825905990,0.88529222,86191.0,86190.0,0.38475571]
[1765825906298,1.61705222,86191.0,86190.0,0.48686781]
[1765825906896,1.61705222,86191.0,86190.0,1.36858781]
[1765825906897,0.91188222,86191.0,86190.0,1.36858781]
[1765825907198,0.91188222,86191.0,86190.0,1.26647571]
[1765825907394,1.26316222,86191.0,86190.0,1.17310382]
[1765825907600,0.53140222,86191.0,86190.0,1.08262821]
[1765825907994,1.26320222,86191.0,86190.0,1.18470632]
[1765825908203,1.26320222,86191.0,86190.0,1.08262821]
[1765825908601,0.53140222,86191.0,86190.0,1.08262821]
[1765825908798,1.26320222,86191.0,86190.0,1.08262821]
[1765825909800,1.26320222,86191.0,86190.0,0.39635821]
[1765825910792,1.26320222,86191.0,86190.0,0.72827821]
[1765825911089,1.26320222,86191.0,86190.0,0.83035632]
[1765825911488,1.26320222,86191.0,86190.0,0.49843632]
[1765825911798,1.26320222,86191.0,86190.0,0.38475571]
[1765825911993,1.61717222,86191.0,86190.0,0.38475571]
[1765825912193,1.61717222,86191.0,86190.0,1.07102571]
[1765825912388,1.61717222,86191.0,86190.0,0.38475571]
[1765825912794,0.88529222,86191.0,86190.0,0.38475571]
[1765825912998,1.61721222,86191.0,86190.0,0.38475571]
[1765825913496,1.61717222,86191.0,86190.0,1.07102571]
[1765825914011,1.61717222,86191.0,86190.0,0.38475571]
[1765825914397,1.61721222,86191.0,86190.0,0.38475571]
[1765825914605,1.61721222,86191.0,86190.0,0.02395571]
[1765825914803,1.61721222,86191.0,86190.0,0.005]
[1765825915104,0.90995,86185.0,86184.0,0.00014103]
[1765825915307,0.70517,86179.0,86178.0,0.1043989]
[1765825915501,0.35128,86171.0,86170.0,0.1430699]
[1765825915702,1.648695,86171.0,86170.0,0.1430699]
[1765825915912,0.7167756,86167.0,86166.0,0.1430699]
[1765825916106,0.9167756,86167.0,86166.0,0.1430699]
[1765825916497,0.90517,86167.0,86166.0,0.49367109]
[1765825916701,0.90517,86167.0,86166.0,0.35060119]
[1765825916912,0.90717,86167.0,86166.0,0.01868119]
[1765825917110,0.70517,86164.0,86163.0,0.372406]
[1765825917319,0.86529492,86164.0,86163.0,0.3608]
[1765825917614,1.59725492,86164.0,86163.0,0.37954572]
[1765825918002,0.89208492,86164.0,86163.0,1.26126572]
[1765825918207,0.16012492,86164.0,86163.0,1.26126572]
[1765825918406,1.24336492,86164.0,86163.0,1.06581572]
[1765825918714,1.24636492,86164.0,86163.0,0.71246572]
[1765825919011,0.16512492,86164.0,86163.0,1.40538976]
[1765825919201,0.51640492,86164.0,86163.0,1.26226572]
[1765825919606,0.87029492,86164.0,86163.0,1.06681572]
[1765825920711,0.16512492,86164.0,86163.0,1.26226572]
[1765825921916,0.86856492,86164.0,86163.0,0.38054572]
[1765825922112,0.86856492,86164.0,86163.0,0.71172572]
[1765825923015,0.16512492,86164.0,86163.0,1.24448572]
[1765825923408,0.85073492,86164.0,86163.0,1.04195572]
[1765825923612,0.16512492,86164.0,86163.0,1.24448572]
[1765825924017,0.49857492,86164.0,86163.0,1.24448572]
[1765825924317,0.16512492,86164.0,86163.0,1.24448572]
[1765825925019,0.49857492,86164.0,86163.0,0.71172572]
[1765825925311,0.16512492,86164.0,86163.0,1.24448572]
[1765825926215,0.68578396,86187.0,86186.0,0.33118]
[1765825926421,0.87578396,86187.0,86186.0,0.673013]
[1765825927106,0.68561,86182.0,86181.0,0.3608]
[1765825927310,0.85561,86182.0,86181.0,0.3608]
[1765825927517,0.85571445,86182.0,86181.0,0.3608]
[1765825927715,0.85571445,86182.0,86181.0,1.02221]
[1765825927919,0.17010445,86182.0,86181.0,1.02221]
[1765825928317,0.86171445,86182.0,86181.0,1.02321]
[1765825928516,0.50955445,86182.0,86181.0,1.02321]
[1765825928726,0.86171445,86182.0,86181.0,0.69298]
[1765825929023,0.86271445,86182.0,86181.0,0.69298]
[1765825929821,0.85871445,86182.0,86181.0,1.02221]
[1765825930320,0.85771445,86182.0,86181.0,1.02221]
[1765825931215,0.85771445,86182.0,86181.0,0.3608]
[1765825931425,0.00210445,86182.0,86181.0,1.02221]
[1765825931610,0.00017396,86187.0,86186.0,0.673013]
[1765825931923,0.03017396,86187.0,86186.0,0.673013]
[1765825932520,0.68561,86206.0,86205.0,0.3427803]
[1765825932809,0.8972103,86206.0,86203.0,0.3608]
[1765825933009,0.68561,86204.0,86203.0,0.3608]
[1765825933217,0.88561,86204.0,86203.0,1.02221]
[1765825933422,1.61769,86204.0,86203.0,1.02221]
[1765825933918,1.6292906,86204.0,86203.0,0.3608]
[1765825934113,1.6332906,86204.0,86203.0,0.3618]
[1765825934617,0.88961,86204.0,86203.0,0.69298]
[1765825934820,1.62165,86204.0,86203.0,0.3618]
[1765825936324,1.62465,86204.0,86203.0,0.3618]
[1765825936723,1.27245,86204.0,86203.0,1.02321]
[1765825936923,0.207,86204.0,86203.0,1.02321]
[1765825939010,0.89261,86204.0,86203.0,0.3618]
[1765825939220,0.207,86204.0,86203.0,1.02321]
[1765825939813,0.00017407,86212.0,86211.0,0.6730096]
[1765825940013,0.18017407,86212.0,86211.0,1.0338096]
[1765825940222,0.86578407,86212.0,86211.0,1.0338096]
[1765825941012,0.86978407,86212.0,86211.0,1.0338096]
[1765825941218,0.18417407,86212.0,86211.0,1.1281547]
[1765825941710,0.18017407,86212.0,86211.0,1.1281547]
[1765825941921,0.73192,86227.0,86226.0,0.6730076]
[1765825942116,0.89192,86227.0,86226.0,1.0338076]
[1765825943322,1.22537,86227.0,86226.0,0.3918637]
[1765825943523,1.22537,86227.0,86226.0,0.3802661]
[1765825944920,1.22637,86227.0,86226.0,0.3802661]
[1765825945416,1.22637,86227.0,86226.0,0.0194661]
[1765825945615,1.22637,86227.0,86218.0,0.00017396]
[1765825945616,0.6972086,86219.0,86218.0,0.00017396]
[1765825945822,0.6972092,86214.0,86213.0,0.3608]
[1765825946012,0.6972092,86214.0,86203.0,0.0116007]
[1765825946013,0.68561,86206.0,86205.0,0.0116004]
[1765825946219,0.85561,86206.0,86205.0,0.3724004]
[1765825946418,0.85561,86206.0,86205.0,0.39130741]
[1765825947023,0.85561,86206.0,86205.0,0.37970701]
[1765825947523,0.85561,86206.0,86205.0,0.01890701]
[1765825947825,0.68561,86201.0,86200.0,4e-05]
[1765825948025,1.57741,86201.0,86200.0,4e-05]
[1765825948526,1.57741,86201.0,86200.0,0.0198525]
[1765825949624,0.6972114,86198.0,86194.0,9.149e-05]
[1765825949924,0.8872114,86198.0,86197.0,0.01912373]
[1765825950136,1.6190114,86198.0,86197.0,0.00017396]
[1765825950429,0.66467,86181.0,86180.0,0.3608]
[1765825950733,0.66467,86179.0,86178.0,7.9e-07]
[1765825950932,0.85467,86179.0,86178.0,7.9e-07]
[1765825951428,0.66467,86164.0,86163.0,0.3608]
[1765825951623,0.846276,86164.0,86163.0,0.3608]
[1765825952331,0.846276,86164.0,86163.0,0.38004822]
[1765825952534,0.846276,86164.0,86133.0,0.3608]
[1765825952535,0.67693,86139.0,86133.0,0.3608]
[1765825952723,1.56889805,86139.0,86128.0,0.0116107]
[1765825952918,1.56889805,86139.0,86130.0,0.0116105]
[1765825953325,1.56889805,86139.0,86138.0,0.02215483]
[1765825953829,1.92969805,86139.0,86138.0,0.00232187]
[1765825954029,2.29049805,86139.0,86138.0,0.00232187]
[1765825954333,2.69149805,86139.0,86138.0,0.00232187]
[1765825954530,0.3401,86108.0,86107.0,0.0116136]
[1765825954736,0.5001,86108.0,86107.0,0.6982836]
[1765825954937,0.16,86108.0,86107.0,0.6982836]
[1765825955132,0.16,86108.0,86107.0,0.71804686]
[1765825955527,0.16010397,86108.0,86107.0,0.71804686]
[1765825955923,0.16010397,86108.0,86107.0,0.70643326]
[1765825956534,0.16010397,86108.0,86107.0,0.70943326]
[1765825957138,0.50020397,86108.0,86107.0,0.71343326]
[1765825957332,0.16010397,86108.0,86107.0,0.71343326]
[1765825958135,0.16010397,86108.0,86107.0,0.71475047]
[1765825958527,0.00010397,86108.0,86107.0,0.71475047]
[1765825958933,0.00017417,86116.0,86115.0,0.68667]
[1765825959240,0.00017417,86116.0,86115.0,0.68798721]
[1765825959241,0.85710417,86116.0,86115.0,0.68798721]
[1765825959636,0.18017417,86116.0,86115.0,0.68798721]
[1765825959944,0.18028718,86116.0,86115.0,0.68798721]
[1765825960130,0.52038718,86116.0,86115.0,0.68998721]
[1765825960336,0.52038718,86116.0,86115.0,0.69298721]
[1765825960838,0.86882958,86116.0,86115.0,0.00631721]
[1765825961343,0.85721718,86116.0,86115.0,0.00631721]
[1765825961533,0.85721718,86116.0,86115.0,0.69298721]
[1765825961734,0.18028718,86116.0,86115.0,0.69298721]
[1765825962241,0.85721718,86116.0,86115.0,0.00631721]
[1765825964136,0.85721718,86116.0,86115.0,0.0066167]
[1765825964338,0.85721718,86116.0,86115.0,0.00691619]
[1765825964645,0.6885444,86101.0,86100.0,4e-05]
[1765825964841,0.87693,86101.0,86100.0,4e-05]
[1765825965155,2.33081,86101.0,86100.0,4e-05]
[1765825966532,1.59853,86101.0,86100.0,4e-05]
[1765825966731,1.59853,86101.0,86100.0,0.00104]
[1765825966943,2.33089,86101.0,86100.0,0.00104]
[1765825967545,2.3425044,86101.0,86100.0,0.00104]
[1765825967748,2.3425044,86101.0,86100.0,0.00304]
[1765825968249,2.3425044,86101.0,86100.0,0.00104]
[1765825968637,2.3425044,86101.0,86100.0,4e-05]
[1765825969246,2.3425044,86101.0,86100.0,0.89691]
[1765825969247,0.5308,86101.0,86100.0,0.89691]
[1765825970641,0.8709,86101.0,86100.0,0.89691]
[1765825970841,1.20773,86101.0,86100.0,0.68671]
[1765825971150,1.2193444,86101.0,86100.0,4e-05]
[1765825972663,1.9518244,86101.0,86100.0,4e-05]
[1765825973345,1.9518244,86101.0,86100.0,0.00195233]
[1765825973753,1.9518244,86101.0,86100.0,0.00261466]
[1765825976550,1.9857182,86101.0,86100.0,0.00261466]
[1765825979553,1.9857182,86101.0,86100.0,0.00324203]
[1765825980047,1.9857182,86101.0,86100.0,0.0038694]
[1765825980550,1.9857182,86101.0,86100.0,0.00420148]
[1765825980743,1.9867182,86101.0,86100.0,0.00420148]
[1765825980948,1.9878382,86101.0,86100.0,0.00420148]
[1765825981141,2.06939181,86101.0,86100.0,0.00420148]
[1765825981553,1.9878382,86101.0,86100.0,0.00420148]
[1765825982441,1.9878382,86101.0,86098.0,0.00232295]
[1765825982442,0.68823,86099.0,86098.0,0.00232295]
[1765825982741,1.2729238,86099.0,86098.0,0.00232295]
[1765825983248,1.27304762,86099.0,86098.0,2.95e-06]
[1765825983458,2.00564762,86099.0,86098.0,2.95e-06]
[1765825983756,2.00664762,86099.0,86098.0,2.95e-06]
[1765825983943,2.00764762,86099.0,86098.0,2.95e-06]
[1765825984147,2.00664762,86099.0,86098.0,2.95e-06]
[1765825984349,2.01164762,86099.0,86098.0,0.00100295]
[1765825984751,1.32141762,86099.0,86098.0,2.95e-06]
[1765825985052,1.32641762,86099.0,86098.0,0.00100295]
[1765825985645,0.69606,86096.0,86095.0,0.73744]
[1765825985952,1.6525538,86096.0,86095.0,0.38316]
[1765825986257,1.6525538,86096.0,86095.0,0.05]
[1765825986456,0.9199538,86096.0,86095.0,0.38316]
[1765825986758,1.6525538,86096.0,86095.0,0.05]
[1765825987050,1.6595538,86096.0,86095.0,0.05]
[1765825987255,1.6595538,86096.0,86095.0,0.05111934]
[1765825988157,0.2308938,86096.0,86095.0,0.73902682]
[1765825988457,1.6595938,86096.0,86095.0,0.05158682]
[1765825990056,1.6595938,86096.0,86095.0,0.38474682]
[1765825990356,1.6595938,86096.0,86095.0,0.05158682]
[1765825991850,0.31434222,86096.0,86095.0,0.73902682]
[1765825992047,0.2308938,86096.0,86095.0,0.73902682]
[1765825992356,0.30438391,86096.0,86095.0,0.73902682]
[1765825992555,0.2208938,86096.0,86095.0,0.73902682]
[1765825993258,0.9169538,86096.0,86095.0,0.73902682]
[1765825993461,0.9169538,86096.0,86095.0,0.05158682]
[1765825993651,1.00047636,86096.0,86095.0,0.38474682]
[1765825993843,0.9169538,86096.0,86095.0,0.73964951]
[1765825994155,0.9169538,86096.0,86095.0,0.0528322]
[1765825994648,0.9169538,86096.0,86095.0,0.05317364]
[1765825996257,1.00050801,86096.0,86095.0,0.05317364]
[1765825996652,0.9169538,86096.0,86095.0,0.05317364]
[1765825998154,0.7076777,86077.0,86076.0,0.0001465]
[1765825998356,2.0149715,86077.0,86076.0,0.01995882]
[1765825999557,2.0159715,86077.0,86076.0,0.01995882]
[1765825999759,2.07863696,86077.0,86076.0,0.01995882]
[1765825999946,2.07963696,86077.0,86076.0,0.01995882]
[1765826000151,1.6572238,86077.0,86076.0,0.70739882]
[1765826000353,0.5766938,86077.0,86076.0,0.70739882]
[1765826000553,1.3082938,86077.0,86076.0,0.70739882]
[1765826000856,0.00017417,86085.0,86084.0,0.6990567]
[1765826001057,0.00017417,86085.0,86084.0,1.0598567]
[1765826001058,0.20017417,86085.0,86084.0,1.0598567]
[1765826001262,0.20017417,86085.0,86084.0,1.06144407]
[1765826001462,0.20017417,86085.0,86084.0,1.04982737]
[1765826002759,0.20217417,86085.0,86084.0,1.04982737]
[1765826003061,0.20417417,86085.0,86084.0,1.04982737]
[1765826005564,0.55210417,86085.0,86084.0,1.04982737]
[1765826006357,0.20417417,86085.0,86084.0,1.04982737]
[1765826006957,0.56372077,86085.0,86084.0,1.04982737]
[1765826007159,1.27265077,86085.0,86084.0,0.00196141]
[1765826007365,1.27265077,86085.0,86084.0,0.04331499]
[1765826007670,1.27265077,86085.0,86084.0,0.00255973]
[1765826007971,1.27265077,86085.0,86077.0,0.06202387]
[1765826007972,0.69606,86078.0,86077.0,0.06202387]
[1765826008156,0.7076777,86077.0,86076.0,0.0001465]
[1765826008356,0.8976777,86077.0,86076.0,0.05172197]
[1765826008664,0.8976777,86077.0,86058.0,0.10560403]
[1765826008665,0.7076801,86059.0,86058.0,0.10560403]
[1765826008865,1.9910401,86059.0,86058.0,0.00232403]
[1765826009166,0.7076812,86051.0,86050.0,4e-05]
[1765826009363,1.99118875,86051.0,86050.0,4e-05]
[1765826010353,0.34658,86037.0,86036.0,0.10328]
[1765826010560,0.7003,86034.0,86033.0,0.10328]
[1765826010758,0.7003,86029.0,86028.0,0.02005006]
[1765826010963,1.6329,86029.0,86028.0,1.5]
[1765826011264,1.6329,86029.0,86028.0,1.81495251]
[1765826011770,1.6329,86029.0,86028.0,1.5]
[1765826012271,1.6329,86029.0,86028.0,1.502]
[1765826012462,1.63301442,86029.0,86028.0,0.002]
[1765826012857,0.69281,86019.0,86018.0,0.00232511]
[1765826013067,1.2652355,86019.0,86018.0,0.00232511]
[1765826013271,1.9979155,86019.0,86018.0,0.00232511]
[1765826013567,0.69281,86012.0,86011.0,0.10347356]
[1765826013768,0.704438,86001.0,86000.0,4e-05]
[1765826013966,1.977918,86001.0,86000.0,4e-05]
[1765826014663,1.97803676,86001.0,86000.0,4e-05]
[1765826014858,0.69281,85982.0,85981.0,0.34245]
[1765826015054,1.45941,85982.0,85981.0,0.7192996]
[1765826015265,0.7666,85982.0,85981.0,0.7192996]
[1765826015564,0.18,85982.0,85981.0,0.7192996]
[1765826016064,0.49444,85982.0,85981.0,0.7212996]
[1765826016265,1.18725,85982.0,85981.0,0.0221896]
[1765826016569,4.38e-06,85990.0,85989.0,0.7107396]
[1765826016766,0.23813601,86020.0,86000.0,0.69911]
[1765826017067,0.12073936,86099.0,86021.0,0.3540751]
[1765826017068,0.3608,86023.0,86021.0,0.3540751]
[1765826017262,0.16,86023.0,86022.0,0.69911]
[1765826017458,0.89284,86023.0,86022.0,0.69911]
[1765826017683,0.89284,86023.0,86014.0,0.00017438]
[1765826017865,2.18608,86022.0,86014.0,0.69928438]
[1765826018169,9.321e-05,86021.0,86020.0,0.69911]
[1765826018360,0.92297321,86021.0,86020.0,0.69911]
[1765826018671,0.92297321,86021.0,86020.0,0.70131338]
[1765826019270,0.92301321,86021.0,86020.0,0.70131338]
[1765826019768,0.19009321,86021.0,86020.0,0.70131338]
[1765826019971,0.00017438,86031.0,86030.0,0.911554]
[1765826020268,0.18017438,86031.0,86030.0,0.89993]
[1765826020467,0.54525438,86031.0,86030.0,0.89993]
[1765826020661,0.54525438,86031.0,86030.0,0.90213338]
[1765826020972,0.18027531,86031.0,86030.0,1.26293338]
[1765826021162,0.0116218,86047.0,86046.0,0.69911]
[1765826021359,0.0116234,86035.0,86030.0,0.56382338]
[1765826021568,0.7044336,86033.0,86032.0,0.00220338]
[1765826021764,0.8644336,86033.0,86032.0,0.00220338]
[1765826022161,0.86452207,86033.0,86032.0,0.00220338]
[1765826022360,1.22532207,86033.0,86032.0,0.00220338]
[1765826023664,1.22632207,86033.0,86032.0,0.00220338]
[1765826024057,1.22832207,86033.0,86032.0,0.00220338]
[1765826024270,0.52388847,86033.0,86024.0,0.36097438]
[1765826024464,8.847e-05,86033.0,86032.0,0.69911]
[1765826024670,3.63e-06,86033.0,86032.0,0.70011]
[1765826024962,0.00017438,86041.0,86040.0,0.7107327]
[1765826025182,0.19017438,86041.0,86040.0,1.0715327]
[1765826025366,0.0116202,86059.0,86040.0,1.0715327]
[1765826025367,0.0116179,86076.0,86058.0,0.20082]
[1765826025563,0.73296,86067.0,86065.0,0.0116193]
[1765826025873,0.91296,86067.0,86066.0,0.0012682]
[1765826026166,1.24591,86067.0,86066.0,0.0012682]
[1765826026375,0.18,86067.0,86066.0,0.7119974]
[1765826026574,0.00017438,86075.0,86074.0,0.7107281]
[1765826026760,0.00017438,86075.0,86066.0,0.0012682]
[1765826026761,0.12017438,86075.0,86066.0,0.0012682]
[1765826026966,0.3316818,86067.0,86066.0,0.0116192]
[1765826027164,0.93292,86067.0,86066.0,0.7107292]
[1765826027362,0.93292,86067.0,86066.0,0.69911]
[1765826027575,1.26587,86067.0,86064.0,0.3608]
[1765826027872,0.00017438,86075.0,86074.0,0.69911]
[1765826028060,0.80377438,86075.0,86074.0,0.69911]
[1765826028472,0.82972931,86075.0,86074.0,0.69911]
[1765826028674,1.16267931,86075.0,86074.0,0.34245]
[1765826028869,1.16267931,86075.0,86066.0,0.001]
[1765826028870,0.33295,86067.0,86066.0,0.001]
[1765826029070,0.85281,86067.0,86066.0,0.001]
[1765826030066,0.0116192,86066.0,86058.0,0.01941743]
[1765826030378,0.1816192,86066.0,86058.0,0.01941743]
[1765826030671,0.69281,86059.0,86058.0,0.01941743]
[1765826030871,1.06579,86059.0,86058.0,0.01941743]
[1765826031071,1.20579,86059.0,86058.0,0.01941743]
[1765826031474,1.20579,86059.0,86058.0,0.00117438]
[1765826031672,0.7044312,86051.0,86050.0,0.3608]
[1765826031862,0.8944312,86051.0,86050.0,0.3608]
[1765826032077,0.0116223,86043.0,86039.0,0.3608]
[1765826032279,0.89284,86043.0,86039.0,0.3608]
[1765826032576,0.89284,86043.0,86042.0,0.69911]
[1765826032768,0.89284,86043.0,86042.0,0.70011395]
[1765826033075,0.89284,86043.0,86042.0,0.70047307]
[1765826033275,1.2374123,86043.0,86042.0,0.00136307]
[1765826034076,1.2374123,86043.0,86042.0,0.00458761]
[1765826034578,0.011623,86038.0,86032.0,0.34262428]
[1765826034769,0.7044336,86033.0,86032.0,0.00017428]
[1765826034968,1.6172736,86033.0,86032.0,0.00017428]
[1765826035970,0.704434,86030.0,86029.0,0.00012365]
[1765826036170,1.245234,86030.0,86029.0,0.00012365]
[1765826036579,0.33295,86013.0,86002.0,0.56162]
[1765826036781,0.93284,86013.0,86012.0,1.05991]
[1765826037580,0.93296365,86013.0,86012.0,1.06091]
[1765826037978,0.20012365,86013.0,86012.0,1.08056137]
[1765826038180,0.00017439,86021.0,86020.0,0.7107354]
[1765826038385,0.00017439,86021.0,86020.0,1.0715354]
[1765826038577,0.20017439,86021.0,86020.0,1.0715354]
[1765826038883,0.00017439,86021.0,86020.0,1.0715354]
[1765826039585,0.0116231,86040.0,86039.0,0.7107328]
[1765826039886,0.9345031,86040.0,86039.0,0.7107328]
[1765826040282,0.19,86040.0,86039.0,0.7107328]
[1765826040478,0.88281,86040.0,86039.0,0.34245]
[1765826040782,0.19,86040.0,86031.0,0.00017439]
[1765826040976,0.0116234,86035.0,86034.0,0.0116234]
[1765826041173,0.2,86035.0,86034.0,0.89993]
[1765826041479,0.002,86040.0,86039.0,0.7107328]
[1765826041787,0.172,86040.0,86039.0,1.0715328]
[1765826041974,0.00017439,86048.0,86047.0,0.8079917]
[1765826042287,0.17017439,86048.0,86047.0,1.1687917]
[1765826042487,0.17017439,86048.0,86047.0,1.0385317]
[1765826042783,0.00017439,86048.0,86047.0,0.8780817]
[1765826043090,0.32551,86077.0,86076.0,0.0116177]
[1765826043286,0.84760228,86077.0,86076.0,0.3529877]
[1765826043484,0.18733228,86077.0,86076.0,0.6777277]
[1765826043979,0.18733228,86077.0,86076.0,0.66611]
[1765826044186,0.18733228,86077.0,86070.0,0.3608]
[1765826044386,0.02733228,86076.0,86071.0,1.5]
[1765826044693,0.0116181,86074.0,86071.0,1.5116184]
[1765826044883,0.0116184,86072.0,86071.0,1.5]
[1765826045078,0.19895068,86072.0,86071.0,1.5]
[1765826045280,0.85922068,86072.0,86071.0,1.5]
[1765826045485,1.06580068,86072.0,86071.0,1.50100418]
[1765826045989,1.06580068,86072.0,86071.0,1.50137614]
[1765826045990,1.06780068,86072.0,86071.0,1.50137614]
[1765826046183,1.07080068,86072.0,86071.0,1.50137614]
[1765826046385,1.05918228,86072.0,86071.0,1.50137614]
[1765826046688,0.85260228,86072.0,86071.0,1.5017481]
[1765826046890,0.86422068,86072.0,86071.0,1.50212006]
[1765826047279,0.85260228,86072.0,86071.0,1.50221957]
[1765826047878,0.19233228,86072.0,86071.0,1.86301957]
[1765826048186,0.165,86072.0,86071.0,1.86301957]
[1765826048387,0.055,86072.0,86071.0,1.86301957]
[1765826048591,0.50072,86080.0,86079.0,0.6777274]
[1765826048780,0.0116184,86072.0,86071.0,1.86301957]
[1765826048979,0.8718884,86072.0,86071.0,1.86301957]
[1765826049179,0.89920625,86072.0,86071.0,1.86301957]
[1765826049578,0.89920625,86072.0,86071.0,1.50221957]
[1765826050086,0.88758785,86072.0,86071.0,1.50221957]
[1765826050385,0.2,86072.0,86071.0,1.50221957]
[1765826050792,1.09416761,86072.0,86071.0,1.50221957]
[1765826051085,1.09416761,86072.0,86071.0,0.00221957]
[1765826051485,0.66027,86061.0,86060.0,0.3608]
[1765826051688,0.66027,86059.0,86058.0,0.00232403]
[1765826051882,0.52551,86059.0,86058.0,0.34369403]
[1765826052192,0.93276,86059.0,86058.0,0.86878403]
[1765826052391,0.2,86059.0,86058.0,0.86878403]
[1765826052888,0.52551,86059.0,86058.0,0.66843403]
[1765826053094,0.2,86059.0,86058.0,0.66943403]
[1765826053586,0.2,86059.0,86058.0,0.67143403]
[1765826053794,0.2,86059.0,86058.0,0.67302166]
[1765826053984,0.2,86059.0,86058.0,0.67202166]
[1765826054990,0.2,86059.0,86058.0,0.67002166]
[1765826055197,0.2,86059.0,86058.0,0.67202166]
[1765826055586,0.00017429,86067.0,86066.0,0.6777292]
[1765826055892,0.01017429,86067.0,86066.0,0.67931683]
[1765826056090,0.19017429,86067.0,86066.0,0.67931683]
[1765826056794,0.19117429,86067.0,86066.0,0.67931683]
[1765826056996,0.51668429,86067.0,86066.0,0.66769763]
[1765826057487,0.00117429,86067.0,86066.0,0.66769763]
[1765826057691,0.23813601,86100.0,86066.0,0.66769763]
[1765826057692,0.07964,86082.0,86081.0,0.6777271]
[1765826057987,0.07964,86082.0,86066.0,0.36238763]